[Event "1st Festival Galdar 2024"]
[Site "?"]
[Date "2024.09.02"]
[Round "1.14"]
[White "Fiorito, Francisco"]
[Black "Reinoso Andre, Lazaro Javier"]
[Result "1-0"]
[Annotator "RC"]
[ECO "C00"]
[WhiteElo "2416"]
[BlackElo "1760"]
[PlyCount "99"]
[EventDate "2024.09.02"]
[EventType "swiss"]
[SourceTitle "playchess.com"]
[Source "ChessBase"]
[SourceQuality "1"]
[TimeControl "5400+30"]

1. Nf3 {[%emt 0:00:05]} c5 {[%emt 0:00:10]} 2. g3 {[%emt 0:00:10]} Nc6 {[%emt 0:00:07]} 3. Bg2 {[%emt 0:00:11]} e6 {[%emt 0:00:28]} 4. O-O {[%emt 0:00:13]} Nf6 {[%emt 0:00:04]} 5. d3 {[%emt 0:00:13]} Be7 {[%emt 0:00:12]} 6. e4 {[%emt 0:00:09]} d5 {[%emt 0:00:18]} 7. Nbd2 {[%emt 0:00:10]} O-O {[%emt 0:00:12]} 8. Re1 {[%emt 0:00:04]} dxe4 {[%emt 0:01:03]} 9. dxe4 {[%emt 0:00:13]} e5 {[%emt 0:00:51]} 10. c3 {[%emt 0:00:50]} Bg4 {[%emt 0:03:01]} 11. h3 {[%emt 0:02:22]} Bh5 {[%emt 0:01:05]} 12. Qb3 {[%emt 0:01:05]} Qc7 {[%emt 0:01:35]} 13. Nc4 {[%emt 0:00:50]} Bg6 {[%emt 0:00:27]} 14. Nh4 {[%emt 0:00:50]} Rfd8 {[%emt 0:02:39]} 15. Nxg6 {[%emt 0:01:18]} hxg6 {[%emt 0:00:07]} 16. a4 {[%emt 0:00:46]} Rab8 {[%emt 0:01:14]} 17. a5 {[%emt 0:01:51]} b5 {[%emt 0:00:41]} 18. axb6 {[%emt 0:00:06]} axb6 {[%emt 0:00:11]} 19. Qb5 {[%emt 0:05:39]} Na7 {[%emt 0:04:03]} 20. Qa6 {[%emt 0:03:26]} Nc6 {[%emt 0:00:17]} 21. Na3 {[%emt 0:07:36]} Ra8 {[%emt 0:07:31]} 22. Qb5 {[%emt 0:01:24]} Ra5 {[%emt 0:01:23]} 23. Qb3 {[%emt 0:00:44]} Rb8 {[%emt 0:07:50]} 24. Nb5 {[%emt 0:05:00]} Qc8 {[%emt 0:00:27]} 25. Be3 {[%emt 0:07:04]} Ne8 {[%emt 0:05:56]} 26. Rad1 {[%emt 0:02:17]} Na7 {[%emt 0:04:20]} 27. Nxa7 {[%emt 0:01:48]} Rxa7 {[%emt 0:00:02]} 28. Qd5 {[%emt 0:01:40]} Bd6 {[%emt 0:09:32]} 29. Bf1 {[%emt 0:02:34]} b5 {[%emt 0:02:05]} 30. b4 {[%emt 0:02:26]} Rd7 {[%emt 0:00:15]} 31. h4 {[%emt 0:03:49]} Nf6 {[%emt 0:01:42]} 32. Qa2 {[%emt 0:02:04]} Qc7 {[%emt 0:02:53]} 33. Bh3 {[%emt 0:11:07]} Rdd8 {[%emt 0:00:22]} 34. bxc5 {[%emt 0:01:11]} Bxc5 {[%emt 0:01:18]} 35. Bg5 {[%emt 0:01:37]} Rxd1 {[%emt 0:00:52]} 36. Rxd1 {[%emt 0:00:01]} Qc6 {[%emt 0:11:02]} 37. Bxf6 {[%emt 0:00:55]} Qxf6 {[%emt 0:00:02]} 38. Rd5 {[%emt 0:00:50]} Bb6 {[%emt 0:01:22]} 39. Kg2 {[%emt 0:00:30]} b4 {[%emt 0:05:01]} 40. cxb4 {[%emt 0:00:38]} Bd4 {[%emt 0:00:12]} 41. b5 {[%emt 0:00:18]} Kh7 {[%emt 0:00:30]} 42. Rd7 {[%emt 0:06:02]} Kg8 {[%emt 0:04:30]} 43. Rxf7 {[%emt 0:00:27]} Qxf7 {[%emt 0:02:21]} 44. Be6 {[%emt 0:00:01]} Qxe6 {[%emt 0:00:23]} 45. Qxe6+ {[%emt 0:00:02]} Kh7 {[%emt 0:00:10]} 46. Qd5 {[%emt 0:00:10]} Rc8 {[%emt 0:05:20]} 47. Qb3 {[%emt 0:04:02]} Rb8 {[%emt 0:04:08]} 48. f4 {[%emt 0:00:22]} exf4 {[%emt 0:01:17]} 49. gxf4 {[%emt 0:00:09]} Rb6 {[%emt 0:03:50]} 50. e5 {[%emt 0:00:10]} 1-0

[Event "1st Festival Galdar 2024"]
[Site "?"]
[Date "2024.09.02"]
[Round "1.15"]
[White "Guerra Aleman, Marcial"]
[Black "Kurajica, Bojan"]
[Result "1/2-1/2"]
[Annotator "TA"]
[ECO "E15"]
[WhiteElo "1759"]
[BlackElo "2409"]
[PlyCount "65"]
[EventDate "2024.09.02"]
[EventType "swiss"]
[SourceTitle "playchess.com"]
[Source "ChessBase"]
[SourceQuality "1"]
[TimeControl "5400+30"]

{[%evp 12,65,19,18,79,81,91,90,131,110,114,105,111,107,132,121,112,124,207,205,240,223,300,262,513,477,506,499,515,510,512,202,224,217,237,170,299,245,291,286,264,243,302,318,291,229,220,200,176,183,228,0,154,0,292,257]} 1. d4 {[%emt 0:00:04]} Nf6 {[%emt 0:00:06]} 2. Nf3 {[%emt 0:00:04]} e6 {[%emt 0:00:06]} 3. c4 {[%emt 0:00:09]} b6 {[%emt 0:00:11]} 4. g3 {[%emt 0:00:31]} Ba6 {[%emt 0:00:07]} 5. b3 {[%emt 0:01:44]} b5 {[%emt 0:00:15]} 6. Bg2 {[%emt 0:00:49]} bxc4 {[%emt 0:00:59]} 7. Ne5 {[%emt 0:03:40][%csl LRa8,LRc4]} c6 {[%emt 0:05:10]} (7... Bb4+ $11 {keeps the balance.} 8. Bd2 cxb3 9. axb3 Bxd2+ 10. Qxd2 d5) 8. bxc4 $16 {[%emt 0:02:30]} Qc7 {[%emt 0:04:32]} 9. Qa4 {[%emt 0:03:03]} d5 {[%emt 0:05:51] White is better.} 10. Ba3 {[%emt 0:05:31] Prevents Bc5.} Bxa3 {[%emt 0:06:50]} 11. Nxa3 {[%emt 0:02:55]} O-O {[%emt 0:04:50]} 12. O-O {[%emt 0:00:46]} Bb7 {[%emt 0:07:14]} 13. Rab1 {[%emt 0:03:10]} Nbd7 {[%emt 0:01:14]} 14. Rfc1 {[%emt 0:02:58]} Rfc8 {[%emt 0:18:40]} (14... Rfb8 $16) 15. cxd5 $18 {[%emt 0:19:10]} exd5 {[%emt 0:00:15]} 16. Qb4 {[%emt 0:05:08]} Nb6 {[%emt 0:05:41]} 17. Nb5 {[%emt 0:03:48]} Qb8 {[%emt 0:00:41]} (17... Qd8 {was worth a try.}) 18. Nd6 {[%emt 0:04:26]} Rc7 {[%emt 0:00:14]} 19. a4 {[%emt 0:03:22][%cal Ba2a4,Ba4a5][%mdl 32]} Ba6 {[%emt 0:00:31]} 20. a5 {[%emt 0:08:33]} Nbd7 {[%emt 0:00:06]} 21. Qd2 {[%emt 0:00:15]} (21. Ndxf7 Qxb4 22. Rxb4 Bxe2 $18) (21. Qa4 Qd8 22. Nxc6 (22. Nexf7 Qe7 $18)) 21... Qf8 {[%emt 0:01:00]} 22. Ndxf7 {[%emt 0:00:58][%cal Bd6f7,Bf7h6,Bh6f5,Bf5e3][%mdl 32]} Re8 {[%emt 0:05:04]} 23. Qg5 {[%emt 0:08:14] [#] Strongly threatening Nh6+.} ({Inferior is} 23. Rxc6 Rxc6 24. Nxc6 Qxf7 $17 (24... Kxf7 25. Qf4 $17) (24... Rxe2 25. Qg5 $17)) 23... Nb8 {[%emt 0:05:34]} (23... Nxe5 $142 24. Nxe5 Bxe2 25. Nxc6 (25. Rxc6 Rxc6 26. Nxc6 h6 $18) 25... Qd6) 24. Nh6+ {[%emt 0:03:22]} Kh8 {[%emt 0:00:06]} 25. Nf5 {[%emt 0:00:12]} Bxe2 {[%emt 0:01:27]} 26. Ne3 {[%emt 0:00:36]} Rd8 {[%emt 0:03:37]} 27. Rb2 {[%emt 0:03:01]} Ba6 {[%emt 0:03:08]} 28. Rbc2 {[%emt 0:00:11]} Bb5 {[%emt 0:00:42]} 29. Rc5 {[%emt 0:00:21] Threatens to win with Rxb5.} Na6 {[%emt 0:03:11]} 30. R5c3 {[%emt 0:12:08][%cal Og5h4]} Nb4 {[%emt 0:04:01]} 31. Rc5 {[%emt 0:01:32] aiming for Rxb5.} Na6 $1 {[%emt 0:07:17] [#]} 32. R5c3 $2 {[%emt 0:00:08] White has more active pieces.} (32. Qh4 $1 $16 Kg8 33. R5c3 (33. Nxc6 Nxc5 34. Nxd8 Ne6 $18)) 32... Nb8 $2 {[%emt 0:01:24][%mdl 8192]} (32... Nb4 $11) 33. Qf4 {[%emt 0:01:08][%mdl 32768] Weighted Error Value: White=0.38/Black=0.51.  Loses game:     	---       	Black=1      Mistake:       	White=2     	Black=3      Inaccurate:     	White=1     	Black=2      OK:         	White=9     	Black=9      Best:        	White=4     	---        Strong:       	---       	Black=1     . An unexpected result.} 1/2-1/2

[Event "1st Festival Galdar 2024"]
[Site "?"]
[Date "2024.09.02"]
[Round "1.16"]
[White "Fiorito, Joaquin"]
[Black "Julien Casteleiro, Ariel"]
[Result "1-0"]
[Annotator "TA"]
[ECO "D53"]
[WhiteElo "2402"]
[BlackElo "1755"]
[PlyCount "129"]
[EventDate "2024.09.02"]
[EventType "swiss"]
[SourceTitle "playchess.com"]
[Source "ChessBase"]
[SourceQuality "1"]
[TimeControl "5400+30"]

{[%evp 42,129,130,0,0,0,0,-245,-268,-273,-277,-222,-275,-247,-215,-621,-638,-556,-296,-1081,-1064,-1129,-139,-131,0,0,0,0,0,0,0,0,0,-59,-51,-31,-31,-167,0,0,292,273,277,277,341,335,307,278,374,374,387,385,378,377,1031,991,904,822,9325,9325,29971,29974,29969,11425,5696,3395,29968,29969,29972,29973,29977,29976,29979,29980,29980,29981,29981,29982,29983,29984,29985,29984,29985,29986,29986,29987,29988,29984,29984,29985]} 1. d4 {[%emt 0:00:01]} d5 {[%emt 0:00:13]} 2. c4 {[%emt 0:00:13]} c6 {[%emt 0:00:26]} 3. Nf3 {[%emt 0:00:07]} Nf6 {[%emt 0:00:06]} 4. Nc3 {[%emt 0:00:10]} e6 {[%emt 0:00:23]} 5. Bg5 {[%emt 0:00:21]} Be7 {[%emt 0:00:22]} 6. e3 {[%emt 0:00:23]} Nbd7 {[%emt 0:01:16]} 7. Bd3 {[%emt 0:00:18]} a6 {[%emt 0:00:31] 7...h6 is the modern continuation.} 8. c5 {[%emt 0:01:40]} O-O {[%emt 0:02:35]} 9. b4 {[%emt 0:00:56]} b6 {[%emt 0:01:33] D53: Queen's Gambit Declined: 4 Bg5 Be7: Early deviations.} 10. O-O {[%emt 0:02:05]} b5 {[%emt 0:01:38]} 11. a4 {[%emt 0:00:19]} Bb7 {[%emt 0:00:56]} 12. Qc2 {[%emt 0:01:46]} Re8 {[%emt 0:01:12]} 13. Ne5 $146 {[%emt 0:01:00]} ({Predecessor:} 13. Bf4 Nf8 14. axb5 axb5 15. Nxb5 cxb5 16. Bxb5 N8d7 17. c6 Bxc6 18. Qxc6 Rxa1 19. Rxa1 Bxb4 20. Ra4 Bf8 21. Ra7 Qc8 22. g4 h6 {0-1 Parmet,D (1624)-Raines,D (1084) WC-2016-P-00008 2012}) 13... g6 {[%emt 0:00:39]} 14. f4 {[%emt 0:00:55]} Nxe5 {[%emt 0:05:00]} 15. fxe5 {[%emt 0:00:47]} Ng4 {[%emt 0:01:59]} 16. Bf4 {[%emt 0:01:55]} Bg5 {[%emt 0:01:41]} 17. Qe2 {[%emt 0:00:19]} Nh6 {[%emt 0:00:32]} 18. Bxg5 {[%emt 0:03:29]} Qxg5 {[%emt 0:00:21]} 19. Rf4 {[%emt 0:01:06]} Nf5 {[%emt 0:01:37]} 20. Raf1 {[%emt 0:00:23]} a5 {[%emt 0:04:43]} 21. axb5 {[%emt 0:01:38]} axb4 {[%emt 0:00:31]} 22. Nd1 {[%emt 0:00:09]} (22. Na2 $16) 22... Ra1 $11 {[%emt 0:01:57]} 23. g4 {[%emt 0:13:16]} Rea8 {[%emt 0:00:52]} 24. Kh1 $2 {[%emt 0:29:22]} (24. h4 $11 {and White has nothing to worry.} Nxh4 25. Rxf7) 24... R8a2 $19 {[%emt 0:28:05]} 25. Qf3 {[%emt 0:00:38]} Qh4 {[%emt 0:02:22]} 26. Nf2 {[%emt 0:00:33]} Rxf1+ {[%emt 0:42:00]} 27. Bxf1 {[%emt 0:00:04]} Nh6 {[%emt 0:00:00]} 28. Nh3 $2 {[%emt 0:03:37] [#]} (28. Kg1) 28... g5 $1 $19 {[%emt 0:00:00]} 29. Rf6 {[%emt 0:00:03]} b3 {[%emt 0:00:00]} (29... Qxg4 $2 30. Rxf7 Qxf3+ 31. Rxf3 $19) 30. e4 $2 {[%emt 0:03:08]} (30. Nf2 Ra1 31. Kg2) 30... b2 $19 {[%emt 0:00:00]} (30... Nxg4 31. Rxf7 Rxh2+ (31... Nxh2 32. Rf8+ Kg7 33. Qf6#) 32. Kg1 $15) 31. Qb3 {[%emt 0:00:39]} Ra1 $2 {[%emt 0:00:00]} (31... dxe4 32. Qxa2 e3 33. Qxb2 cxb5+ 34. Bg2 Qe1+ 35. Ng1 $18) (31... Qxg4 $2 32. Nf2 (32. Qxa2 $2 Qxe4+ 33. Kg1 b1=Q $19) 32... b1=Q 33. Qxb1 Rxf2 34. Rxf2 $18) (31... Qe1 $19 32. Qxa2 b1=Q (32... b1=B $2 33. Qf2 $18) 33. Qxb1 Qxb1 34. exd5 Nxg4) 32. Qxb2 $17 {[%emt 0:00:07] [#]} Rxf1+ {[%emt 0:00:00]} (32... Qe1 $1 $17 33. exd5 (33. Nxg5 $2 Nf5 $19) 33... Nf5 (33... Nxg4 34. Rf3 $17)) 33. Rxf1 $11 {[%emt 0:00:02]} Qxh3 {[%emt 0:00:00]} 34. Qg2 {[%emt 0:00:13]} Qe3 {[%emt 0:00:00]} (34... Qxg4 $2 35. Qxg4 Nxg4 36. exd5 exd5 37. b6 $18) 35. exd5 {[%emt 0:00:36]} exd5 {[%emt 0:00:00]} (35... cxb5 $2 36. c6 Ba8 37. Ra1 Bxc6 38. dxc6 Qxd4 39. Rf1 $18 (39. Ra8+ Kg7 $16)) 36. Rf6 {[%emt 0:01:47]} Kg7 {[%emt 0:00:00]} 37. h3 {[%emt 0:01:11]} (37. bxc6 $11 Bc8 38. Qf3 Qe1+ (38... Nxg4 $2 39. Rxf7+ Kg6 40. Qxe3 $18) (38... Qxd4 39. Rxh6 Qa1+ 40. Kg2 $14) (38... Qxf3+ 39. Rxf3 Bxg4 40. Rg3 $14) 39. Kg2 Bxg4 (39... Nxg4 40. Rxf7+ Kg8 41. Rf8+ Kg7 42. Rf7+ Kg8 43. Rf8+ Kg7 44. Rf7+ $11) 40. Qd3) 37... Qxd4 {[%emt 0:00:00]} 38. bxc6 {[%emt 0:00:07]} Bc8 {[%emt 0:00:00]} (38... Qxe5 $2 39. cxb7 (39. Rxh6 Qe1+ 40. Kh2 Qe5+ 41. Kh1 Qe1+ 42. Qg1 Qe4+ 43. Kh2 Kxh6 $11) 39... Kxf6 40. Qf1+ Kg7 41. Qb1 $18) 39. Rf1 {[%emt 0:02:53]} (39. Rd6 $1 $15) 39... Qxc5 $2 {[%emt 0:00:00]} ({Black should play} 39... Qxe5 $19 {Hoping for ...d4.} 40. Qf2 Qe6 41. Qd4+ f6) 40. Qd2 $11 {[%emt 0:00:03]} Qxc6 $2 {[%emt 0:00:00][%mdl 8192]} (40... Qe7 $11 {and Black is okay.}) 41. Rf6 $1 $18 {[%emt 0:00:07]} (41. Qxg5+ $2 Qg6 42. Qf4 Ng8 $19) 41... Be6 {[%emt 0:00:00]} 42. Qxg5+ {[%emt 0:00:04]} Kf8 {[%emt 0:00:00]} 43. Qxh6+ {[%emt 0:01:35]} (43. Rxh6 d4+ 44. Kg1 Qc3 45. Qd8+ (45. Rxh7 $2 Qg3+ 46. Kh1 Bd5#) 45... Kg7 46. Qg5+ Kf8 47. Rxe6 (47. Rxh7 $2 Qg3+ 48. Kh1 Bd5#) 47... Qg3+ 48. Kf1 Qxh3+ 49. Ke2 Qg2+ 50. Kd3 Qf1+ 51. Kxd4 Qa1+ 52. Kd3 Qf1+ 53. Ke4 Qc4+ 54. Kf3 Qxe6 $11) 43... Ke7 {[%emt 0:00:00]} 44. Rf2 {[%emt 0:00:23]} d4+ {[%emt 0:00:00]} 45. Kh2 {[%emt 0:00:03]} Qc5 {[%emt 0:00:00]} 46. Qf4 {[%emt 0:00:39]} (46. Qxh7 Qxe5+ 47. Kg2 Bd5+ 48. Kf1 Bc4+ 49. Kg2 d3 $11) 46... d3 {[%emt 0:00:00]} 47. Rb2 {[%emt 0:00:31]} Bd5 $2 {[%emt 0:00:00]} (47... Bb3 48. Kg3 (48. Rxb3 Qc2+ 49. Kg3 Qxb3 $11) 48... Qc3) 48. Qf6+ {[%emt 0:00:26]} Kd7 {[%emt 0:00:00]} 49. Qf5+ {[%emt 0:00:07]} Be6 {[%emt 0:00:00]} 50. Qxd3+ {[%emt 0:00:05]} Ke7 {[%emt 0:00:00]} 51. Rb7+ {[%emt 0:00:08]} (51. Qxh7 $2 Qxe5+ 52. Kg1 Qe3+ (52... Qxb2 $2 53. Qe4 $19) 53. Kh2 (53. Rf2 $2 Qe1+ 54. Kg2 Bd5+ 55. Kg3 Qe3+ $19) 53... Qf4+ (53... Qe5+ $2 54. Kg1 $19) 54. Kg2 Bd5+ 55. Kg1 Qc1+ 56. Kf2 Qxb2+ $19) 51... Ke8 {[%emt 0:00:00]} 52. Qb5+ {[%emt 0:00:06]} (52. Qxh7 $2 {is a self mate.} Qf2+ (52... Qxe5+ $2 53. Kg2 $19) 53. Kh1 Bd5+) (52. Rb8+ $142 Bc8 53. Qf5 (53. Qxh7 $2 {is the wrong capture.} Qxe5+ 54. Kg2 Qxb8 $19) 53... Kd8 54. Ra8 (54. Qxh7 Qxe5+ 55. Kg2 Qxb8 $11) 54... Qc1 55. Qxf7 (55. Qxh7 Qd2+ 56. Kg3 Qe1+ 57. Kg2 Qe2+ 58. Kg3 Qe1+ 59. Kg2 Qe2+ 60. Kg3 Qe1+ $11) 55... Qd2+ 56. Kg3 Qe1+ 57. Kg2 Qd2+ 58. Qf2 Qd5+ 59. Qf3 Qd2+ 60. Kg3 Qe1+ 61. Kf4) 52... Qxb5 $18 {[%emt 0:00:09]} 53. Rxb5 {[%emt 0:00:01]} Kf8 {[%emt 0:00:28]} 54. Kg3 {[%emt 0:00:07]} Kg7 {[%emt 0:00:04]} 55. Kf4 {[%emt 0:00:04]} h6 {[%emt 0:00:06]} 56. h4 {[%emt 0:00:19]} Kg6 {[%emt 0:00:03]} 57. h5+ {[%emt 0:00:08]} Kg7 {[%emt 0:00:43]} 58. g5 {[%emt 0:00:05]} Bc4 {[%emt 0:00:46]} 59. Rb6 {[%emt 0:00:04]} Be6 {[%emt 0:00:25]} 60. g6 {[%emt 0:00:27]} Bc4 {[%emt 0:00:13]} 61. Rb7 {[%emt 0:00:06]} Be6 {[%emt 0:00:14]} 62. gxf7 {[%emt 0:00:07]} Kf8 {[%emt 0:01:12]} 63. Ke4 {[%emt 0:00:06]} Kg7 {[%emt 0:00:28]} 64. f8=Q+ {[%emt 0:00:24]} Kxf8 {[%emt 0:00:18]} 65. Rh7 {[%emt 0:00:04]} 1-0

[Event "1st Festival Galdar 2024"]
[Site "?"]
[Date "2024.09.02"]
[Round "1.17"]
[White "Matos Espino, Carlos Silverio"]
[Black "Balaji, Aaravamudhan"]
[Result "0-1"]
[Annotator "TA"]
[ECO "B06"]
[WhiteElo "1732"]
[BlackElo "2396"]
[PlyCount "52"]
[EventDate "2024.09.02"]
[EventType "swiss"]
[SourceTitle "playchess.com"]
[Source "ChessBase"]
[SourceQuality "1"]
[TimeControl "5400+30"]

{[%evp 9,52,52,62,13,22,18,31,6,20,-1,6,-29,-16,-81,-37,-50,-63,-106,-92,-103,-77,-95,-106,-118,-97,-118,-102,-179,-197,-225,-235,-287,-251,-360,-332,-427,-434,-618,-211,-793,-800,-794,-789,-29998,-29999]} 1. e4 {[%emt 0:00:02]} g6 {[%emt 0:01:28]} 2. d4 {[%emt 0:00:07]} Bg7 {[%emt 0:00:04]} 3. Nf3 {[%emt 0:00:16]} d6 {[%emt 0:00:06]} 4. Nc3 {[%emt 0:00:43]} a6 {[%emt 0:02:31]} 5. Bc4 {[%emt 0:01:00]} Nf6 {[%emt 0:01:45]} 6. Bb3 {[%emt 0:15:30]} (6. O-O $14) 6... O-O $11 {[%emt 0:00:46]} 7. h3 {[%emt 0:00:59]} Nc6 {[%emt 0:10:20]} 8. Be3 {[%emt 0:01:59] White is slightly better.} Na5 {[%emt 0:01:36]} 9. Qd2 {[%emt 0:01:01]} Nxb3 {[%emt 0:01:05]} 10. cxb3 {[%emt 0:01:14]} b5 {[%emt 0:01:36]} 11. Bh6 {[%emt 0:04:19]} (11. e5 $11 {keeps the balance.} dxe5 12. Nxe5) 11... b4 {[%emt 0:20:36]} 12. Bxg7 {[%emt 0:00:09]} Kxg7 {[%emt 0:00:43]} (12... bxc3 $6 13. Qh6 Nxe4 (13... cxb2 14. Rb1 $16) 14. O-O-O $14) 13. e5 {[%emt 0:04:09]} dxe5 {[%emt 0:03:17]} (13... bxc3 14. exf6+ exf6 15. bxc3 $11) 14. dxe5 {[%emt 0:00:38]} Qxd2+ {[%emt 0:01:02]} (14... bxc3 15. exf6+ exf6 16. Qxd8 Rxd8 17. bxc3 $15) 15. Nxd2 {[%emt 0:00:07]} Nd7 {[%emt 0:01:10][%cal Bf6d7,Bd7e5,Be5d3][%mdl 32]} 16. Nd5 {[%emt 0:01:04]} Nxe5 {[%emt 0:00:45]} 17. Nxb4 {[%emt 0:03:00]} a5 {[%emt 0:04:33]} 18. Nd5 {[%emt 0:06:13]} (18. f4 $17) 18... Rd8 $1 $19 {[%emt 0:03:53]} 19. Nxc7 {[%emt 0:57:30]} Nd3+ {[%emt 0:15:12]} 20. Ke2 {[%emt 0:00:00]} Nf4+ {[%emt 0:03:20]} 21. Kf3 {[%emt 0:00:00] [#]} (21. Kd1 {was worth a try.} Ra7 (21... Rb8 $2 22. Rg1 $19) 22. Rc1) 21... e5 $1 {[%emt 0:00:32] ( -> ...Rd3+)} 22. Nc4 {[%emt 0:00:00] [#]} (22. Rae1 Bb7+) 22... Rd3+ $1 {[%emt 0:03:48]} (22... Bb7+ 23. Kg3 Rac8 24. Nb5 Rd3+ (24... Bxg2 25. Rhd1 $17) (24... Nxg2 $2 25. Nbd6 $18) 25. f3 Rxc4 26. bxc4 $19) 23. Ke4 {[%emt 0:00:00] [#]} (23. Ne3 $142 Bb7+ 24. Kg3) 23... f6 $2 $40 {[%emt 0:03:04][%mdl 128] Black is out for blood.} (23... Bf5+ $1 24. Kxe5 Nxg2) 24. Nd6 $2 {[%emt 0:00:00] [#]} (24. Nxa8 $2 Bf5#) (24. Nxe5 fxe5 25. Kxe5 (25. Nxa8 $2 {gets mated.} Kf6 26. h4 Bf5#)) 24... Bd7 $1 {[%emt 0:01:53]} 25. Rac1 {[%emt 0:00:00] Prevents Bc6+} Rxd6 {[%emt 0:00:44]} 26. Nxa8 {[%emt 0:00:00]} Bf5+ {[%emt 0:17:41] Weighted Error Value: White=0.95/Black=0.37.  Mistake:       	White=5     	Black=1      Inaccurate:     	White=2     	Black=1      OK:         	White=2     	Black=10     Best:        	White=1     	Black=2      Strong:       	---       	Black=1} 0-1

[Event "1st Festival Galdar 2024"]
[Site "?"]
[Date "2024.09.02"]
[Round "1.18"]
[White "Suarez Uriel, Adrian"]
[Black "Bangiev, Anton"]
[Result "1-0"]
[Annotator "TA"]
[ECO "C41"]
[WhiteElo "2383"]
[BlackElo "1731"]
[PlyCount "53"]
[EventDate "2024.09.02"]
[EventType "swiss"]
[SourceTitle "playchess.com"]
[Source "ChessBase"]
[SourceQuality "1"]
[TimeControl "5400+30"]

{[%evp 10,53,36,33,72,53,199,202,205,-52,9,10,6,18,5,-1,0,0,0,-28,9,9,49,41,47,43,30,30,43,26,41,35,56,14,401,389,406,379,891,876,881,843,29988,5924,6554,6299]} 1. e4 {[%emt 0:00:06]} d6 {[%emt 0:00:06]} 2. d4 {[%emt 0:00:05]} Nf6 {[%emt 0:00:12]} 3. Nc3 {[%emt 0:00:04]} e5 {[%emt 0:00:51]} 4. Nf3 {[%emt 0:00:05]} Nbd7 {[%emt 0:00:20]} 5. Bc4 {[%emt 0:00:05]} Be7 {[%emt 0:00:36]} 6. a4 {[%emt 0:00:05]} a5 {[%emt 0:00:12]} 7. dxe5 {[%emt 0:00:06] White is more active.} dxe5 {[%emt 0:00:31]} (7... Nxe5 $14 8. Nxe5 dxe5) 8. Ng5 $18 {[%emt 0:00:41]} O-O {[%emt 0:03:23] [#] White is clearly better.} 9. Be3 $2 {[%emt 0:01:24]} (9. Bxf7+ $1 $18 Rxf7 10. Ne6) 9... Bd6 {[%emt 0:19:03]} (9... Bb4 $1 $15) 10. Nb5 $11 {[%emt 0:00:55]} Qe7 {[%emt 0:05:12]} 11. Nxd6 {[%emt 0:00:07]} cxd6 {[%emt 0:00:08]} 12. Qe2 {[%emt 0:00:16]} Nc5 {[%emt 0:04:57]} 13. Bxc5 {[%emt 0:01:27]} dxc5 {[%emt 0:00:08]} 14. O-O-O {[%emt 0:00:27]} h6 {[%emt 0:04:38]} 15. Nf3 {[%emt 0:03:41]} b6 {[%emt 0:03:29]} 16. Nh4 {[%emt 0:00:48] And now Ng6 would win.} Be6 {[%emt 0:08:41]} 17. Nf5 {[%emt 0:03:06]} Bxf5 {[%emt 0:00:28]} 18. exf5 {[%emt 0:00:01]} Rad8 {[%emt 0:06:15] Black is weak on the light squares} 19. f4 {[%emt 0:00:35]} e4 {[%emt 0:01:10]} 20. g4 $36 {[%emt 0:00:05][%cal Bg2g4,Bg4g5][%mdl 2080] White has good play.} Qc7 {[%emt 0:01:29]} 21. Rdf1 {[%emt 0:01:06] Threatens to win with g5.} Rfe8 $2 {[%emt 0:02:10][%mdl 8192]} (21... e3 $1 $11 {and Black is okay.}) 22. g5 $18 {[%emt 0:00:10]} Nd5 {[%emt 0:03:57]} 23. gxh6 {[%emt 0:00:47]} gxh6 $2 {[%emt 0:00:16]} (23... Qc6 24. hxg7 Kxg7 25. Rhg1+ Kf8) 24. Rhg1+ {[%emt 0:00:09]} Kf8 {[%emt 0:00:39]} 25. Qg2 {[%emt 0:01:18][%cal Of5f6] f6! would kill now.} h5 {[%emt 0:03:39]} 26. Bxd5 {[%emt 0:00:23]} (26. f6 $142 Nxf6 27. Qg7+ Ke7 28. Qxf7+ Kd6 29. Qxf6+ Kd7 30. Ba6 (30. Rg7+ Kc8 31. Ba6+ Kb8 32. Rxc7 Kxc7 33. Qf7+ Rd7 34. Qxe8 h4 35. Qc8+ Kd6) 30... Qd6 31. Rd1 (31. Rg7+ Re7 32. Rxe7+ Qxe7 33. Bb5+ Kc8 34. Qxe7 Kb8 35. Qxd8+ Kb7 36. Rg1 e3 37. Rg7#)) 26... Rxd5 {[%emt 0:00:08] [#]} 27. f6 $1 {[%emt 0:00:03] Weighted Error Value: White=0.20 (precise) /Black=0.99.  Loses game:     	---       	Black=1      Missed win:     	White=1     	---        Mistake:       	---       	Black=3      Inaccurate:     	White=1     	Black=2      OK:         	White=8     	Black=7      Best:        	White=3     	---} 1-0